bitfinex/quotes_ETHUSD_20240824
["timestamp","ask_amount","ask_price","bid_price","bid_amount"]
[1724527195984,3.57428,2797.8,2797.3,3.57478]
[1724527196342,3.57428,2797.8,2797.1,9.81017029]
[1724527196541,2.9835032,2798.2,2797.1,9.81017029]
[1724527196542,3.57449,2797.6,2797.1,3.64108732]
[1724527196860,3.57462,2797.5,2797.1,3.64108732]
[1724527198744,5.95976,2797.7,2797.1,7.21615732]
[1724527198986,3.57446,2797.7,2797.1,7.21615732]
[1724527200876,3.57451,2797.6,2797.1,3.64108732]
[1724527201171,7.1491,2797.6,2797.1,2.66007029]
[1724527201935,3.57451,2797.6,2797.1,2.66007029]
[1724527202233,3.57451,2797.6,2797.1,2.2864]
[1724527202681,3.57474,2797.4,2797.1,2.2864]
[1724527203084,3.57474,2797.4,2796.8,10.83545]
[1724527203280,3.57474,2797.4,2796.9,2.2864]
[1724527203631,3.57458,2797.6,2797.0,3.57517]
[1724527204878,7.14916,2797.6,2797.0,3.57517]
[1724527205080,3.57458,2797.6,2797.0,3.57517]
[1724527205525,7.14917,2797.6,2797.0,3.57517]
[1724527206190,3.57458,2797.6,2797.0,3.57517]
[1724527206733,3.57458,2797.6,2797.1,5.86145]
[1724527207085,3.57428,2797.8,2797.2,3.575]
[1724527207283,2.3853,2797.9,2797.3,2.2864]
[1724527207284,3.57411,2797.9,2797.3,2.2864]
[1724527207515,3.57411,2797.9,2797.4,3.57473]
[1724527208743,3.57393,2798.1,2797.5,3.57459]
[1724527208924,3.57398,2798.0,2797.5,3.57459]
[1724527210803,7.14804,2798.0,2797.3,5.86115]
[1724527211002,7.14804,2798.0,2797.3,7.6251197]
[1724527211202,7.14807,2798.0,2797.4,3.57473]
[1724527211404,3.57398,2798.0,2797.4,3.57473]
[1724527211746,10.1310932,2798.2,2797.6,3.57445]
[1724527211931,6.5572632,2798.2,2797.4,3.57465]
[1724527212106,3.57399,2798.0,2797.4,3.57465]
[1724527212702,3.57411,2797.9,2797.4,3.57465]
[1724527213111,3.57429,2797.8,2797.3,2.2864]
[1724527213358,3.57436,2797.7,2797.3,2.2864]
[1724527214367,2.643829,2797.8,2797.1,13.32042]
[1724527214531,3.5745,2797.6,2797.1,13.32042]
[1724527214741,3.5745,2797.6,2797.1,9.7453]
[1724527216367,3.5745,2797.6,2797.1,13.32042]
[1724527217417,9.792409,2797.8,2797.1,13.32042]
[1724527217617,3.57437,2797.7,2797.1,13.32042]
[1724527219783,3.5745,2797.6,2797.1,9.7453]
[1724527220135,3.5745,2797.6,2797.1,6.06042]
[1724527221035,3.5745,2797.6,2797.1,2.4853]
[1724527221235,3.57462,2797.5,2797.0,3.57517]
[1724527222984,4.058163,2797.7,2797.0,7.15032]
[1724527223185,0.381063,2797.6,2797.0,7.15032]
[1724527223334,3.955563,2797.6,2797.0,3.57515]
[1724527223681,3.955563,2797.6,2797.0,7.15032]
[1724527223833,3.955563,2797.6,2797.0,3.57515]
[1724527224283,5.86124,2797.4,2796.9,2.4853]
[1724527225132,2.2864,2797.4,2796.9,6.06067]
[1724527225332,7.5932676,2797.5,2796.9,6.06067]
[1724527225533,4.0185476,2797.5,2796.9,6.06067]
[1724527226179,2.667463,2797.6,2797.0,3.57522]
[1724527226382,4.058113,2797.7,2797.0,3.57522]
[1724527227180,4.058113,2797.7,2797.0,5.12292686]
[1724527227342,4.058113,2797.7,2797.2,3.57497]
[1724527227740,4.058113,2797.7,2797.1,3.57512]
[1724527228781,4.058113,2797.7,2797.0,5.12286686]
[1724527228984,4.058113,2797.7,2797.0,8.69804686]
[1724527229388,3.5745,2797.6,2797.0,5.12286686]
[1724527229840,3.5745,2797.6,2797.0,3.57516]
[1724527230190,4.3377613,2797.6,2797.0,3.57516]
[1724527230367,3.57467,2797.5,2797.0,3.57516]
[1724527230689,5.83127,2797.5,2797.0,3.57516]
[1724527232690,9.40598,2797.5,2796.9,2.4853]
[1724527232907,9.40598,2797.5,2796.9,3.57538]
[1724527233073,3.57475,2797.4,2796.9,3.57538]
[1724527234864,3.57487,2797.3,2796.8,3.5754]
[1724527235761,6.4047639,2797.5,2796.8,7.15081]
[1724527236111,6.4047639,2797.5,2796.9,3.57533]
[1724527236273,3.57479,2797.4,2796.8,3.5754]
[1724527236615,3.57479,2797.4,2796.8,7.15084]
[1724527236810,3.57479,2797.4,2796.8,7.15083]
[1724527237103,3.57479,2797.4,2796.9,3.57537]
[1724527237900,2.8300339,2797.5,2796.9,3.57537]
[1724527238559,4.3378213,2797.6,2796.8,5.12311686]
[1724527238762,3.57456,2797.6,2796.9,0.37293459]
[1724527239506,3.57456,2797.6,2796.8,5.12311686]
[1724527239700,3.57466,2797.5,2797.0,3.57525]
[1724527244522,2.2769,2797.4,2797.0,3.57525]
[1724527248616,3.57466,2797.5,2797.0,3.57525]
[1724527249328,2.2769,2797.6,2797.0,7.15041]
[1724527249627,2.2769,2797.6,2797.1,3.57512]
[1724527250336,5.85148,2797.6,2797.0,3.57525]
[1724527258528,2.2769,2797.6,2797.1,3.5751]
[1724527260563,5.85139,2797.6,2797.1,3.5751]
[1724527261886,3.57464,2797.5,2796.9,3.91087547]
[1724527262035,3.57464,2797.5,2797.0,3.57525]
[1724527266889,7.14935,2797.5,2797.0,3.57525]
[1724527267071,7.14935,2797.5,2796.8,8.69862686]
[1724527267270,2.4674,2797.2,2796.8,5.12311686]
[1724527269790,2.4674,2797.2,2796.8,3.57541]
[1724527275259,2.4674,2797.2,2796.6,3.57571]
[1724527275260,4.01510686,2797.2,2796.6,3.57571]
[1724527275488,4.01510686,2797.2,2796.7,3.57563]
[1724527275671,4.77410755,2797.2,2796.5,10.83582]
[1724527275888,8.34918755,2797.2,2796.6,3.57576]
[1724527279711,11.92429755,2797.2,2796.6,3.57576]
[1724527280069,3.57513,2797.1,2796.6,3.57576]
[1724527281086,3.57513,2797.1,2796.5,10.83589]
[1724527283215,3.57513,2797.1,2796.5,14.39708015]
[1724527285825,3.57526,2797.0,2796.5,10.82119015]
[1724527286603,3.57526,2797.0,2796.5,14.39707015]
[1724527291614,3.57526,2797.0,2796.5,7.13707015]
[1724527292465,2.2875,2796.9,2796.5,7.13707015]
[1724527292636,2.2875,2796.9,2796.6,0.68742572]
[1724527299275,2.2875,2796.9,2796.5,3.56119015]
[1724527301155,3.57602,2796.4,2796.3,19.7]
[1724527301500,5.86352,2796.4,2796.3,19.7]
[1724527303257,5.86352,2796.4,2796.2,7.26]
[1724527303258,5.86352,2796.4,2795.8,5.12447686]
[1724527303793,5.86352,2796.4,2795.8,4.92447686]
[1724527304790,5.86352,2796.4,2795.8,6.63709732]
[1724527305166,2.2875,2796.4,2795.9,3.57662]
[1724527306155,3.57553,2796.8,2796.2,5.12388686]
[1724527306360,5.86303,2796.8,2796.2,5.12388686]
[1724527306572,5.86303,2796.8,2796.2,8.70008686]
[1724527307388,2.2875,2796.8,2796.4,3.57601]
[1724527307625,5.86276,2797.0,2796.4,3.32601]
[1724527308624,5.86276,2797.0,2796.5,3.57581]
[1724527308625,2.2875,2797.0,2796.5,3.57581]
[1724527308830,2.2875,2797.0,2796.4,4.87371686]
[1724527309594,5.86276,2797.0,2796.4,8.44966686]
[1724527309789,5.86276,2797.0,2796.4,4.87371686]
[1724527311423,9.43811,2797.0,2796.4,4.87371686]
[1724527311623,5.86276,2797.0,2796.4,4.87371686]
[1724527312134,9.43812,2797.0,2796.4,4.87371686]
[1724527312326,5.86276,2797.0,2796.4,4.87371686]
[1724527313026,9.43811,2797.0,2796.4,4.87371686]
[1724527313805,5.86276,2797.0,2796.4,4.87371686]
[1724527314644,9.43811,2797.0,2796.4,4.87371686]
[1724527315042,9.43811,2797.0,2796.4,3.32601]
[1724527315895,5.86276,2797.0,2796.4,3.32601]
[1724527316099,9.43811,2797.0,2796.4,3.32601]
[1724527318749,10.53669169,2797.0,2796.4,3.32601]
[1724527320701,6.96134169,2797.0,2796.4,6.90196]
[1724527320901,6.96134169,2797.0,2796.4,3.32601]
[1724527321132,5.86276,2797.0,2796.4,6.90195]
[1724527321340,5.86276,2797.0,2796.4,3.32601]
[1724527322750,5.86276,2797.0,2796.4,6.90196]
[1724527322955,9.43811,2797.0,2796.4,3.32601]
[1724527323250,5.86276,2797.0,2796.4,3.32601]
[1724527324852,9.43814,2797.0,2796.4,3.32601]
[1724527325024,10.53672469,2797.0,2796.4,3.32601]
[1724527325749,6.96134469,2797.0,2796.4,3.32601]
[1724527326312,10.53669469,2797.0,2796.4,3.32601]
[1724527326540,6.96134469,2797.0,2796.4,3.32601]
[1724527326740,10.53668469,2797.0,2796.4,3.32601]
[1724527327546,3.57538,2796.9,2796.4,3.32601]
[1724527327747,2.452,2796.8,2796.4,3.32601]
[1724527328449,6.02752,2796.8,2796.2,12.38387686]
[1724527328947,2.452,2796.7,2796.2,10.83617]
[1724527329456,2.452,2796.7,2796.3,3.57615]
[1724527330718,2.452,2796.7,2796.2,10.83617]
[1724527330719,2.452,2796.7,2796.2,14.41236]
[1724527330924,3.57582,2796.6,2796.2,7.26]
[1724527331259,2.2516,2796.5,2796.2,7.26]
[1724527333217,2.8122471,2796.5,2796.2,7.26]
[1724527333418,0.5606471,2796.5,2796.4,3.57602]
[1724527336388,0.5606471,2796.5,2796.4,7.15204]
[1724527336917,0.5606471,2796.5,2796.4,3.57602]
[1724527337118,0.5606471,2796.5,2796.4,13.51900109]
[1724527337362,2.2516,2797.4,2797.0,3.57514]
[1724527337666,2.2516,2797.4,2797.1,3.57511]
[1724527338415,2.2516,2797.4,2797.2,3.57499]
[1724527340277,2.4142,2797.8,2797.4,3.57474]
[1724527340789,2.4142,2797.8,2797.4,3.57465]
[1724527342082,2.97459491,2798.3,2798.0,3.57386]
[1724527342267,0.56039491,2798.3,2798.1,3.57383]
[1724527342449,2.4142,2798.5,2798.2,3.57372]
[1724527342650,2.4142,2798.5,2798.1,3.57383]
[1724527350076,2.94356078,2799.1,2798.2,2.3913]
[1724527350281,2.94356078,2799.1,2799.0,3.5727]
[1724527350591,3.57194,2799.6,2799.0,3.5727]
[1724527350592,2.3833,2799.6,2799.0,3.5727]
[1724527351200,5.95532,2799.6,2799.0,3.5727]
[1724527352678,3.57208,2799.5,2799.0,3.5727]
[1724527353220,2.3833,2799.6,2799.0,3.5727]
[1724527353920,3.49077469,2799.6,2799.0,3.5727]
[1724527354316,7.06272469,2799.6,2799.0,3.57259]
[1724527354522,5.95525,2799.6,2799.0,3.57259]
[1724527354729,5.95525,2799.6,2799.0,7.14521]
[1724527355227,4.13174214,2799.9,2799.3,1.54770686]
[1724527356324,4.13174214,2799.9,2799.4,3.57215]
[1724527357594,0.56013214,2799.9,2799.4,3.57215]
[1724527357794,5.95465,2800.1,2799.4,3.5721]
[1724527358019,7.06199669,2800.1,2799.4,3.5721]
[1724527358803,3.57145,2800.0,2799.4,3.5721]
[1724527362935,3.57156,2799.9,2799.4,3.5721]
[1724527363501,2.3833,2800.1,2799.5,3.57195]
[1724527363838,2.3833,2800.1,2799.6,3.57186]
[1724527364137,2.3833,2800.1,2799.5,3.57195]
[1724527364328,2.3833,2800.1,2799.5,5.98884855]
[1724527364719,5.95461,2800.1,2799.5,5.98884855]
[1724527368405,5.95461,2800.1,2799.6,3.57192]
[1724527368613,5.95461,2800.1,2799.5,5.98884855]
[1724527368843,3.57131,2800.1,2799.6,5.96322]
[1724527369047,3.57114,2800.3,2799.7,1.19520685]
[1724527369244,3.57114,2800.3,2799.7,4.76692685]
[1724527370044,3.57117,2800.2,2799.7,4.76692685]
[1724527372050,3.57117,2800.2,2799.7,1.19520685]
[1724527372868,3.57132,2800.1,2799.7,1.19520685]
[1724527373032,3.57117,2800.2,2799.7,1.19520685]
[1724527373232,3.57117,2800.2,2799.8,0.71584369]
[1724527378464,3.57105,2800.3,2799.8,0.71584369]
[1724527380766,3.57105,2800.3,2799.7,6.31462371]
[1724527382103,7.14245,2800.2,2799.7,1.54770686]
[1724527382261,2.3868,2800.1,2799.5,8.69168686]
[1724527382579,2.3868,2800.1,2799.6,3.57192]
[1724527383352,3.57118,2800.2,2799.7,3.57179]
[1724527383532,2.3868,2800.3,2799.7,9.56035555]
[1724527383732,2.3868,2800.3,2799.8,2.2561]
[1724527384065,5.95785,2800.3,2799.8,2.2561]
[1724527384883,3.57119,2800.2,2799.7,3.57171]
[1724527385486,5.95821,2800.1,2799.5,3.57205]
[1724527386276,3.57144,2800.0,2799.5,3.57205]
[1724527387163,2.3868,2800.5,2799.8,1.54770686]
[1724527387369,3.57113,2800.3,2799.8,1.54770686]
[1724527387886,7.14227,2800.3,2799.7,3.57178]
[1724527388407,3.57113,2800.3,2799.7,7.14356]
[1724527388862,3.57113,2800.3,2799.8,3.57166]
[1724527389842,3.57113,2800.3,2799.7,3.57178]
[1724527390865,2.4358,2800.2,2799.7,3.57178]
[1724527392051,6.007,2800.2,2799.6,1.54770686]
[1724527392246,6.007,2800.2,2799.6,5.11961686]
[1724527393488,3.57131,2800.1,2799.6,3.57191]
[1724527393694,2.4358,2800.0,2799.4,3.5721]
[1724527393843,2.4358,2800.0,2799.4,5.11980686]
[1724527394050,2.4358,2800.0,2799.4,3.5721]
[1724527394276,6.607971,2800.0,2799.4,8.69192686]
[1724527394501,3.036511,2800.0,2799.4,8.69192686]
[1724527394701,2.4358,2800.0,2799.5,3.57204]
[1724527395992,2.4358,2800.0,2799.6,3.57193]
[1724527396584,2.4358,2800.3,2799.8,3.57167]
[1724527396797,2.4358,2800.3,2799.7,3.57172]
[1724527396798,6.00686,2800.3,2799.7,3.57172]
[1724527396997,2.4358,2800.3,2799.8,3.5716]
[1724527397151,2.4358,2800.3,2800.0,3.57142]
[1724527397352,6.31951853,2800.8,2800.1,3.57121]
[1724527397353,2.4358,2800.6,2800.1,3.57121]
[1724527397593,2.4358,2800.6,2800.2,3.57114]
[1724527397594,3.56103476,2800.6,2800.2,3.57114]
[1724527397986,2.4358,2800.6,2800.2,3.57114]
[1724527399453,2.4358,2800.6,2800.0,10.95264686]
[1724527400106,3.6983307,2800.8,2799.5,0.75055897]
[1724527400410,0.1278507,2800.8,2800.7,3.57053]
[1724527401475,0.1278507,2800.8,2800.6,5.11834686]
[1724527402611,0.1278507,2800.8,2800.6,8.68891686]
[1724527402797,0.1278507,2800.8,2800.7,3.57053]
[1724527404377,0.1278507,2800.8,2800.7,7.14106]
[1724527408953,0.1278507,2800.8,2800.7,8.68876686]
[1724527409157,2.4014507,2800.8,2800.7,3.57053]
[1724527409341,0.1278507,2800.8,2800.7,5.11823686]
[1724527409648,0.1278507,2800.8,2800.7,9.64455171]
[1724527410011,0.1278507,2800.8,2800.7,6.07402171]
[1724527410212,0.1278507,2800.8,2800.7,9.64455171]
[1724527410981,0.1278507,2800.8,2800.7,12.03845171]
[1724527411193,0.1278507,2800.8,2800.7,18.60898171]
[1724527412835,0.1278507,2800.8,2800.7,15.03845171]
[1724527413043,0.1278507,2800.8,2800.7,13.49074485]
[1724527413241,0.1278507,2800.8,2800.7,15.03845171]
[1724527414528,0.1278507,2800.8,2800.7,13.49074485]
[1724527414861,0.1278507,2800.8,2800.7,19.26092385]
[1724527414862,0.01250286,2800.8,2800.7,19.26092385]
[1724527415520,0.01250286,2800.8,2800.7,17.06127485]
[1724527416831,0.01250286,2800.8,2800.7,13.49074485]
[1724527417328,0.01250286,2800.8,2800.7,17.06127485]
[1724527419376,0.01250286,2800.8,2800.7,13.49074485]
[1724527419532,0.01250286,2800.8,2800.7,11.09684485]
[1724527420836,0.01250286,2800.8,2800.7,14.66737485]
[1724527421081,0.01250286,2800.8,2800.7,17.06127485]
[1724527425359,0.01250286,2800.8,2800.7,13.49074485]
[1724527425535,0.01250286,2800.8,2800.7,11.09684485]
[1724527428142,0.01250286,2800.8,2800.7,7.14106]
[1724527429336,0.01250286,2800.8,2800.7,10.14106]
[1724527429640,0.01250286,2800.8,2800.7,13.71159]
[1724527433213,0.01250286,2800.8,2800.7,10.14106]
[1724527440547,0.01250286,2800.8,2800.7,11.68423991]
[1724527440715,0.01250286,2800.8,2800.7,17.0196459]
[1724527441617,0.01250286,2800.8,2800.7,13.4491159]
[1724527443426,0.00823686,2800.8,2800.7,13.4491159]
[1724527445358,0.00823686,2800.8,2800.7,17.0196459]
[1724527447360,0.00823686,2800.8,2800.7,13.4491159]
[1724527450460,0.00823686,2800.8,2800.7,14.69039959]
[1724527451014,0.00823686,2800.8,2800.7,18.26092959]
[1724527452347,0.00823686,2800.8,2800.7,18.2609192]
[1724527452547,0.00823686,2800.8,2800.7,20.12281261]
[1724527452733,6.86e-06,2800.8,2800.7,25.98654261]
[1724527452935,2.4203,2802.0,2801.9,7.138]
[1724527453141,2.4203,2802.7,2802.2,3.56856]
[1724527453453,3.019119,2802.7,2802.2,5.11169991]
[1724527454072,3.019119,2802.7,2802.3,3.56848]
[1724527454227,2.4203,2802.7,2802.4,3.56832]
[1724527454426,2.4203,2802.7,2802.4,5.11149991]
[1724527455223,2.4203,2802.7,2802.5,3.56823]
[1724527455432,2.4203,2802.7,2802.4,5.11149991]
[1724527456366,2.4203,2802.7,2802.2,5.11169991]
[1724527456677,2.4203,2802.7,2801.7,6.56922]
[1724527456678,2.4203,2802.6,2802.0,7.13762]
[1724527456823,2.4203,2802.6,2802.0,3.56877]
[1724527457023,3.56812,2802.6,2802.0,3.56877]
[1724527457368,2.4203,2802.5,2802.0,3.56877]
[1724527458073,2.4203,2802.5,2802.0,7.13755]
[1724527458275,2.4203,2802.5,2801.9,3.56899]
[1724527458276,6.587422,2802.5,2801.9,3.56899]
[1724527458632,2.4203,2802.4,2802.0,7.13764]
[1724527458800,2.4203,2802.4,2802.0,3.56878]
[1724527460203,2.33326592,2802.7,2802.3,3.56837]
[1724527460429,2.33326592,2802.7,2802.3,7.13679]
[1724527460849,2.74889131,2803.6,2803.1,3.56746]
[1724527460850,0.1314835,2803.6,2803.1,3.56746]
[1724527461058,0.1314835,2803.6,2802.8,3.56782]
[1724527461216,3.6984135,2803.6,2802.9,3.56764]
[1724527461417,3.6984135,2803.6,2802.9,7.13528]
[1724527461727,0.36984135,2803.5,2802.9,3.56764]
[1724527462043,3.93689135,2803.5,2802.9,3.56764]
[1724527462368,3.6984235,2803.6,2802.6,3.56806]
[1724527462650,3.56705,2803.5,2802.8,3.56777]
[1724527462832,3.6984235,2803.6,2802.8,3.56777]
[1724527463198,3.6984235,2803.6,2803.0,3.56751]
[1724527463199,0.1314835,2803.6,2803.0,3.56751]
[1724527463426,2.3345,2803.5,2803.1,3.56743]
[1724527463797,2.3345,2803.5,2803.0,3.56751]
[1724527465952,0.1314835,2803.6,2803.1,3.56738]
[1724527466112,0.73475485,2803.6,2803.0,3.56751]
[1724527466859,4.30162485,2803.6,2803.0,3.56751]
[1724527467551,3.56698,2803.5,2802.8,3.56776]
[1724527467708,0.73475485,2803.6,2803.0,3.56758]
[1724527467909,0.73475485,2803.6,2803.0,3.56752]
[1724527468738,4.23058848,2803.5,2802.8,3.56776]
[1724527469057,4.23058848,2803.5,2802.9,3.56769]
[1724527470271,2.478,2803.4,2802.9,3.56769]
[1724527470578,2.478,2803.4,2802.8,3.56773]
[1724527471163,6.04518,2803.4,2802.8,3.56773]
[1724527471373,1.02757685,2803.3,2802.8,3.56773]
[1724527473666,2.478,2803.4,2802.9,3.56772]
[1724527473833,2.478,2803.4,2802.8,3.56773]
[1724527475177,6.04515,2803.4,2802.8,3.56773]
[1724527476080,3.56722,2803.3,2802.8,3.56773]
[1724527476301,3.56722,2803.3,2802.6,3.568]
[1724527476441,3.56722,2803.3,2802.7,3.5679]
[1724527478641,3.56722,2803.3,2802.8,3.56784]
[1724527478843,2.478,2803.4,2802.8,3.56784]
[1724527479751,6.04517,2803.4,2802.8,3.56784]
[1724527481273,3.56722,2803.3,2802.8,3.56784]
[1724527482855,3.56722,2803.3,2802.6,7.13601]
[1724527483056,3.56722,2803.3,2802.7,3.56795]
[1724527483255,7.13455,2803.3,2802.7,3.56795]
[1724527483593,3.56722,2803.3,2802.7,3.56795]
[1724527484139,7.13456,2803.3,2802.7,3.56795]
[1724527484571,3.56737,2803.2,2802.7,3.56795]
[1724527484890,3.56737,2803.2,2802.6,4.281611]
[1724527485742,6.0451,2803.4,2802.8,3.56778]
[1724527485942,2.478,2803.4,2802.9,3.56764]
[1724527486138,2.478,2803.4,2802.8,3.56778]
[1724527486501,6.0451,2803.4,2803.1,1.54102583]
[1724527487759,6.0451,2803.4,2802.4,3.56833]
[1724527487760,2.478,2802.9,2801.8,2.82514927]
[1724527487961,2.478,2802.5,2802.1,1.54102583]
[1724527488590,2.478,2802.5,2802.3,1.54102583]
[1724527489202,6.04627,2802.5,2802.3,1.54102583]
[1724527490385,6.04627,2802.5,2802.1,1.54102583]
[1724527490584,6.04627,2802.5,2801.9,3.56889]
[1724527490795,6.04627,2802.5,2802.0,0.39418816]
[1724527491002,3.56839,2802.4,2801.8,0.37299156]
[1724527491306,3.56863,2802.2,2801.8,0.37299156]
[1724527491859,2.3198,2802.1,2801.8,0.37299156]
[1724527492464,2.3198,2802.1,2801.7,3.56924]
[1724527492666,2.3198,2802.1,2801.7,4.28311]
[1724527494311,2.3198,2802.4,2801.9,3.56897]
[1724527494462,5.88819,2802.4,2801.7,7.85225]
[1724527494662,5.88819,2802.4,2801.7,4.28301]
[1724527494864,2.3198,2802.4,2801.8,0.79839215]
[1724527495618,2.3198,2802.4,2801.9,3.56893]
[1724527497592,5.88821,2802.4,2801.9,3.56893]
[1724527498222,5.88821,2802.4,2801.8,0.79839215]
[1724527498424,9.45668,2802.4,2801.8,4.36751215]
[1724527498693,3.56871,2802.2,2801.6,10.82936]
[1724527499125,3.56871,2802.2,2801.6,11.20107444]
[1724527500996,3.56871,2802.2,2801.6,10.82936]
[1724527501720,3.56819,2802.6,2802.0,3.5688]
[1724527501924,3.56819,2802.6,2802.1,0.35688]
[1724527502244,3.56848,2802.4,2801.7,2.3133]
[1724527502395,3.56848,2802.4,2801.7,8.88245]
[1724527502636,3.56818,2802.6,2801.8,3.5691]
[1724527502841,5.8883,2802.3,2801.8,3.5691]
[1724527503840,2.3198,2802.3,2801.8,3.5691]
[1724527504988,2.3198,2802.3,2801.8,3.56905]
[1724527505970,5.8883,2802.3,2801.8,3.56905]
[1724527506174,5.88814,2802.5,2801.8,8.91504556]
[1724527506370,5.88814,2802.5,2801.8,5.34599556]
[1724527506680,3.56836,2802.4,2801.8,5.34599556]
[1724527507792,7.13682,2802.4,2801.8,5.34599556]
[1724527507941,3.56836,2802.4,2801.8,5.34599556]
[1724527509177,3.56836,2802.4,2801.8,5.34598556]
[1724527510751,7.13682,2802.4,2801.8,5.34598556]
[1724527510993,3.56836,2802.4,2801.8,5.34598556]
[1724527511396,3.5685,2802.3,2801.8,5.34598556]
[1724527511764,3.56836,2802.4,2801.8,5.34598556]
[1724527512182,7.13684,2802.4,2801.8,5.34598556]
[1724527512702,3.56836,2802.4,2801.8,5.34598556]
[1724527513284,3.56836,2802.4,2801.8,8.91504556]
[1724527513971,3.56836,2802.4,2801.8,5.34598556]
[1724527514551,3.56836,2802.4,2801.8,6.88830404]
[1724527515978,3.5685,2802.3,2801.8,5.11135848]
[1724527516258,3.5685,2802.3,2801.8,3.56904]
[1724527516569,2.3726,2802.2,2801.8,3.56904]
[1724527517001,2.3726,2802.2,2801.6,15.94092848]
[1724527517206,2.3726,2802.2,2801.7,3.56918]
[1724527520877,5.94122,2802.2,2801.7,3.56918]
[1724527521095,2.3726,2802.1,2801.6,7.26]
[1724527521293,5.94194,2801.7,2801.4,19.7]
[1724527521709,3.56947,2801.6,2801.4,19.7]
[1724527522012,3.56947,2801.6,2801.0,10.83008]
[1724527522236,3.56947,2801.6,2801.0,12.66000385]
[1724527523337,3.56952,2801.5,2801.0,12.66000385]
[1724527523609,5.94194,2801.7,2801.0,12.66000385]
[1724527523817,3.56946,2801.6,2801.0,12.66000385]
[1724527524113,3.56955,2801.5,2801.0,7.26]
[1724527524420,5.94245,2801.3,2801.0,7.26]
[1724527524623,9.51232,2801.3,2801.0,7.26]
[1724527525225,3.56989,2801.2,2801.0,7.26]
[1724527525783,3.56989,2801.2,2800.7,3.0]
[1724527526326,9.51232,2801.3,2800.6,10.83059]
[1724527526483,3.56993,2801.2,2800.6,10.83059]
[1724527527826,2.3726,2801.0,2800.6,7.26]
[1724527530416,3.57032,2800.9,2800.6,7.26]
[1724527530915,2.3726,2801.0,2800.6,7.26]
[1724527531345,2.3285,2801.6,2800.6,9.7349]
[1724527531630,5.89756,2801.9,2801.3,3.56976]
[1724527531839,2.3285,2801.9,2801.4,3.56952]
[1724527532138,3.56879,2802.1,2801.5,0.356952]
[1724527532334,2.3285,2802.0,2801.4,3.56952]
[1724527532688,3.56855,2802.3,2801.5,2.4749]
[1724527532883,3.56855,2802.3,2801.6,0.07137973]
[1724527533529,3.56855,2802.3,2801.5,2.4749]
[1724527533733,3.56855,2802.3,2801.8,3.5691]
[1724527534312,2.3285,2802.4,2801.8,7.13813]
[1724527534514,3.56829,2802.5,2801.8,3.56903]
[1724527536295,3.56845,2802.4,2801.8,3.56903]
[1724527536635,3.7037338,2803.1,2802.3,3.56841]
[1724527536636,3.56768,2803.0,2802.3,3.56841]
[1724527536804,3.56768,2803.0,2802.4,3.56832]
[1724527538391,7.13539,2803.0,2802.4,3.56832]
[1724527538591,5.89581,2803.3,2802.5,3.56821]
[1724527539591,3.56755,2803.1,2802.4,3.56832]
[1724527539838,3.56755,2803.1,2802.5,0.604322]
[1724527540532,3.56755,2803.1,2802.5,4.172552]
[1724527542035,3.56755,2803.1,2802.5,0.604322]
[1724527545344,2.3285,2803.3,2802.2,10.82856]
[1724527545345,3.56785,2802.9,2802.2,10.82856]
[1724527545642,3.5679,2802.8,2802.2,10.82856]
[1724527546003,3.56801,2802.7,2802.2,10.82856]
[1724527546398,3.56781,2802.9,2802.2,10.82851]
[1724527546640,3.56781,2802.9,2802.3,1.082851]
[1724527547311,3.56781,2802.9,2802.3,4.651301]
[1724527550830,3.56781,2802.9,2802.3,1.082851]
[1724527551038,2.3285,2803.1,2802.2,10.82851]
[1724527551202,3.8352173,2803.6,2802.4,2.35]
[1724527551203,5.90013,2803.3,2802.4,2.35]
[1724527551405,3.56756,2803.1,2802.5,3.56823]
[1724527551623,3.56756,2803.1,2802.5,1.248658]
[1724527551823,3.56756,2803.1,2802.5,4.248658]
[1724527552018,3.56762,2803.0,2802.5,4.248658]
[1724527552225,3.56756,2803.1,2802.5,7.816878]
[1724527552438,3.56761,2803.0,2802.5,4.248658]
[1724527552947,3.56761,2803.0,2802.5,7.816878]
[1724527553357,2.3328,2802.9,2801.3,1.18809535]
[1724527553500,2.3328,2802.9,2801.4,3.56957]
[1724527553501,5.90177,2802.0,2801.4,3.56957]
[1724527553708,5.90177,2802.0,2801.2,5.91979]
[1724527553963,5.90177,2802.0,2801.3,4.161699]
[1724527554253,3.56909,2801.9,2801.3,4.161699]
[1724527555450,3.56918,2801.8,2801.3,0.591979]
[1724527556267,5.90172,2802.0,2801.3,4.161669]
[1724527556445,5.90172,2802.0,2801.4,4.3427369]
[1724527556609,9.47071,2802.0,2801.4,4.3427369]
[1724527556808,3.569,2801.9,2801.4,4.3427369]
[1724527557310,9.47071,2802.0,2801.4,4.3427369]
[1724527557510,5.90172,2802.0,2801.4,4.3427369]
[1724527559808,5.90172,2802.0,2801.5,3.5695]
[1724527560305,2.3328,2802.0,2801.5,3.5695]
[1724527560749,7.13739,2802.2,2801.5,3.5695]
[1724527560750,3.56867,2802.2,2801.7,3.56923]
[1724527563500,3.56867,2802.2,2801.5,4.59564369]
[1724527564028,3.56867,2802.2,2801.6,3.56934]
[1724527565732,3.5688,2802.1,2801.5,4.59571369]
[1724527565977,3.56867,2802.2,2801.5,4.59571369]
[1724527566478,3.56876,2802.1,2801.5,4.59571369]
[1724527566696,3.56876,2802.1,2801.5,3.56949]
[1724527566899,3.56888,2802.0,2801.5,3.56949]
[1724527567102,3.56888,2802.0,2801.4,0.7731469]
[1724527567395,3.56888,2802.0,2801.4,4.3426669]
[1724527568282,3.56888,2802.0,2801.5,3.56948]
[1724527569998,7.13739,2802.2,2801.5,3.56948]
[1724527571786,3.56875,2802.1,2801.5,3.56948]
[1724527572498,3.56875,2802.1,2801.5,4.59569469]